bitfinex-derivatives/quotes_SOLF0:USTF0_20250212
["timestamp","ask_amount","ask_price","bid_price","bid_amount"]
[1739399085123,5.0611,197.58,197.5,11.91576613]
[1739399085431,22.09679785,197.65,197.5,6.85286613]
[1739399085625,0.03790309,197.56,197.52,5.10010511]
[1739399085821,0.03790309,197.56,197.52,0.03780511]
[1739399086031,22.09679785,197.65,197.5,6.85286613]
[1739399086032,0.91929079,197.64,197.5,6.85286613]
[1739399086234,0.03762422,197.56,197.54,5.0619]
[1739399086434,0.91929079,197.62,197.47,3.1264]
[1739399086635,0.91929079,197.62,197.54,5.0618]
[1739399086935,0.03738198,197.57,197.53,0.03861253]
[1739399087330,0.03738198,197.57,197.53,5.10071253]
[1739399087533,0.03738198,197.57,197.53,0.03861253]
[1739399088032,0.03738198,197.57,197.55,5.0617]
[1739399088434,8.198e-05,197.57,197.55,5.0617]
[1739399088829,8.198e-05,197.57,197.55,6.5593]
[1739399093541,8.198e-05,197.57,197.55,1.4976]
[1739399093740,8.198e-05,197.57,197.56,5.0615]
[1739399094440,1.5004,197.72,197.65,5.0591]
[1739399094441,5.97674936,197.71,197.65,5.0591]
[1739399094634,0.91894936,197.7,197.65,5.0591]
[1739399094834,0.91894936,197.7,197.59,22.09679785]
[1739399095038,0.91894936,197.69,197.55,23.59439785]
[1739399095337,0.91895398,197.68,197.55,23.59439785]
[1739399095641,0.0356751,197.64,197.62,5.0599]
[1739399096737,0.0356751,197.64,197.6,0.03618975]
[1739399097043,0.0356751,197.64,197.63,5.0597]
[1739399098238,0.0356751,197.64,197.6,0.03618975]
[1739399098839,0.0356751,197.64,197.63,5.0597]
[1739399102650,0.0356751,197.64,197.6,0.03618975]
[1739399103245,0.0356751,197.64,197.6,5.09658975]
[1739399103442,0.0356751,197.64,197.6,0.03618975]
[1739399103642,5.0597,197.63,197.6,0.03618975]
[1739399103843,0.0356751,197.64,197.6,0.03618975]
[1739399104246,5.0602,197.61,197.6,0.03618975]
[1739399104852,5.06,197.62,197.6,0.03618975]
[1739399105353,0.0356751,197.64,197.6,0.03618975]
[1739399105354,5.0602,197.61,197.6,0.03618975]
[1739399105857,5.97947091,197.61,197.6,0.03618975]
[1739399106058,5.97947091,197.61,197.53,5.0622]
[1739399106059,5.0606,197.6,197.53,5.0622]
[1739399106260,25.40708011,197.65,197.5,1.5996]
[1739399106462,0.91927289,197.64,197.47,22.14978011]
[1739399106652,5.0604,197.61,197.48,1.4999]
[1739399107158,0.03301136,197.56,197.53,0.03650471]
[1739399107652,0.03301136,197.56,197.54,5.062]
[1739399108555,0.03301136,197.56,197.53,0.03650471]
[1739399108757,0.03301136,197.56,197.55,5.0617]
[1739399112254,0.03301136,197.56,197.53,0.03650471]
[1739399112454,22.14978011,197.54,197.4,20.43655217]
[1739399112759,2.51513427,197.53,197.4,20.43655217]
[1739399113062,0.91963427,197.52,197.4,20.43655217]
[1739399113362,5.0641,197.46,197.39,6.85286613]
[1739399113764,0.03514438,197.44,197.41,0.03826301]
[1739399114062,1.5955,197.53,197.39,6.85286613]
[1739399114261,0.0349384,197.44,197.41,0.0341385]
[1739399114462,0.91995929,197.52,197.39,6.85286613]
[1739399114661,0.03350945,197.44,197.41,0.03228085]
[1739399114854,5.0641,197.46,197.41,0.03228085]
[1739399115057,0.03719241,197.44,197.41,0.03228085]
[1739399115260,0.91993047,197.52,197.4,5.0656]
[1739399115460,0.03430273,197.44,197.41,0.03271052]
[1739399115660,0.91992697,197.49,197.41,0.03271052]
[1739399115860,0.03459793,197.44,197.41,0.03271052]
[1739399116056,0.03459793,197.44,197.3,22.14978011]
[1739399116258,0.92019831,197.45,197.35,5.0668]
[1739399116458,5.0656,197.41,197.35,5.0668]
[1739399116659,22.14978011,197.42,197.26,22.14978011]
[1739399116958,5.0658,197.4,197.25,4.818]
[1739399117352,0.03795967,197.34,197.31,0.03423519]
[1739399117554,0.92025461,197.41,197.31,0.03423519]
[1739399117760,0.03766777,197.34,197.31,0.03423519]
[1739399118065,0.03319032,197.34,197.31,0.03423519]
[1739399118864,9.032e-05,197.34,197.31,0.03423519]
[1739399119766,9.032e-05,197.34,197.33,5.0674]
[1739399129768,9.032e-05,197.34,197.32,5.0674]
[1739399130174,9.032e-05,197.34,197.31,0.03423519]
[1739399130473,9.032e-05,197.34,197.31,5.10213519]
[1739399130977,9.032e-05,197.34,197.32,5.0676]
[1739399132777,9.032e-05,197.34,197.33,5.0674]
[1739399141583,9.032e-05,197.34,197.31,5.10183519]
[1739399141784,9.032e-05,197.34,197.31,0.03423519]
[1739399142185,9.032e-05,197.34,197.33,5.0674]
[1739399142385,9.032e-05,197.34,197.31,0.03423519]
[1739399143288,9.032e-05,197.34,197.32,5.0676]
[1739399143584,9.032e-05,197.34,197.31,0.03423519]
[1739399144686,9.032e-05,197.34,197.31,5.10183519]
[1739399146691,9.032e-05,197.34,197.31,0.03423519]
[1739399146889,9.032e-05,197.34,197.32,5.0676]
[1739399150491,9.032e-05,197.34,197.31,0.03423519]
[1739399150699,9.032e-05,197.34,197.33,5.0674]
[1739399157602,1.4843,197.45,197.31,13.90727746]
[1739399157801,13.87304227,197.48,197.36,13.87304227]
[1739399157997,0.91994467,197.47,197.36,13.87304227]
[1739399158303,1.6477,197.49,197.36,13.87304227]
[1739399158500,1.6477,197.49,197.39,13.87304227]
[1739399159011,0.03406787,197.44,197.41,0.0322551]
[1739399159206,6.787e-05,197.44,197.43,5.0648]
[1739399159510,1.6146,197.51,197.41,0.0322551]
[1739399159705,65.6239952,197.52,197.5,5.0629]
[1739399159904,1.6477,197.53,197.42,13.87304227]
[1739399160108,1.6477,197.53,197.42,15.47314227]
[1739399160506,0.0343865,197.49,197.46,0.03318146]
[1739399161009,0.0343865,197.49,197.48,5.0633]
[1739399167011,8.65e-05,197.49,197.48,5.0633]
[1739399167910,8.65e-05,197.49,197.48,18.93634227]
[1739399168115,5.0602,197.61,197.56,5.0613]
[1739399168320,0.91936765,197.6,197.56,5.0613]
[1739399168814,5.0601,197.62,197.56,5.0613]
[1739399169020,0.91927375,197.61,197.51,13.87304227]
[1739399169216,0.95224907,197.61,197.57,5.0612]
[1739399169410,0.03297532,197.61,197.57,0.03209536]
[1739399170317,0.03297532,197.61,197.57,5.09329536]
[1739399170522,0.03297532,197.61,197.57,0.03209536]
[1739399171222,0.03297532,197.61,197.58,5.0609]
[1739399172126,0.03297532,197.61,197.57,0.03209536]
[1739399173119,5.09317532,197.61,197.57,0.03209536]
[1739399173320,0.03297532,197.61,197.57,0.03209536]
[1739399175022,5.0605,197.6,197.57,0.03209536]
[1739399175525,0.03297532,197.61,197.57,0.03209536]
[1739399175526,5.09327532,197.61,197.57,0.03209536]
[1739399175726,0.91931358,197.6,197.57,0.03209536]
[1739399175926,0.03297532,197.61,197.57,0.03209536]
[1739399177426,5.0604,197.6,197.57,0.03209536]
[1739399177929,0.03297532,197.61,197.57,0.03209536]
[1739399180028,0.03297532,197.61,197.57,13.90513763]
[1739399181028,0.03297532,197.61,197.59,5.0606]
[1739399181429,114.15304227,197.78,197.64,13.87304227]
[1739399181730,5.97496592,197.77,197.66,5.0588]
[1739399181928,4.7702,197.79,197.66,5.0588]
[1739399181929,0.91886592,197.76,197.67,13.87304227]
[1739399182129,0.91886592,197.78,197.67,13.87304227]
[1739399182331,0.91886592,197.77,197.64,13.87304227]
[1739399182531,0.91886592,197.77,197.67,5.0584]
[1739399182732,0.03797612,197.74,197.71,0.03635722]
[1739399185032,0.95658865,197.74,197.71,0.03635722]
[1739399185228,0.03797612,197.74,197.71,0.03635722]
[1739399190837,0.03797612,197.74,197.71,5.09385722]
[1739399191233,0.03797612,197.74,197.71,0.03635722]
[1739399191437,0.03797612,197.74,197.72,5.0573]
[1739399192136,5.0531,197.89,197.76,13.87304227]
[1739399192335,0.91819839,197.88,197.76,13.87304227]
[1739399192534,5.97149839,197.88,197.78,5.0558]
[1739399192731,0.91819839,197.88,197.78,5.0558]
[1739399192935,0.91819839,197.87,197.73,17.03344227]
[1739399193240,0.03685725,197.84,197.8,0.03301531]
[1739399194039,5.09115725,197.84,197.8,0.03301531]
[1739399194337,0.03685725,197.84,197.8,0.03301531]
[1739399194935,13.87304227,197.91,197.8,0.03301531]
[1739399195137,0.91813505,197.9,197.8,13.90605758]
[1739399195438,0.91813505,197.89,197.8,13.87304227]
[1739399195635,0.91813505,197.93,197.8,13.87304227]
[1739399195838,13.87304227,197.94,197.8,13.87304227]
[1739399196040,13.87304227,197.88,197.74,13.87304227]
[1739399196340,0.91803088,197.87,197.85,0.03321499]
[1739399196539,2.47723088,197.87,197.76,5.0562]
[1739399196740,2.41913088,197.86,197.76,5.0562]
[1739399196936,0.91803088,197.85,197.77,5.056]
[1739399197335,0.91803088,197.85,197.74,13.87304227]
[1739399197539,1.5592,197.87,197.78,13.87304227]
[1739399197739,13.87304227,197.95,197.81,13.87304227]
[1739399197934,0.9180749,197.94,197.81,13.87304227]
[1739399198243,0.03818068,197.84,197.82,5.0548]
[1739399198431,13.87304227,197.88,197.74,15.40164227]
[1739399198637,5.08834665,197.85,197.76,5.0563]
[1739399198829,0.9180749,197.84,197.74,15.40164227]
[1739399199037,0.03424665,197.85,197.74,15.40164227]
[1739399199338,5.0549,197.82,197.74,13.87304227]
[1739399199738,0.03300775,197.8,197.76,0.03481362]
[1739399200243,5.08850775,197.8,197.76,0.03481362]
[1739399200735,0.03300775,197.8,197.76,0.03481362]
[1739399201342,0.91837031,197.84,197.78,13.87304227]
[1739399201537,5.0539,197.86,197.78,13.87304227]
[1739399201736,0.91825418,197.85,197.78,13.87304227]
[1739399201935,0.91825418,197.89,197.81,13.87304227]
[1739399202142,0.91810385,197.93,197.81,13.87304227]
[1739399202435,3.1171,197.99,197.81,13.87304227]
[1739399202436,0.91810385,197.92,197.81,13.87304227]
[1739399202643,0.03876824,197.89,197.85,0.03301032]
[1739399202943,5.0521,197.93,197.85,5.0539]
[1739399203145,0.91793207,197.92,197.85,5.0539]
[1739399203341,0.03368957,197.89,197.85,0.03495744]
[1739399206143,0.03368957,197.89,197.86,5.0538]
[1739399206339,0.03368957,197.89,197.85,0.03495744]
[1739399208745,0.95174627,197.89,197.85,0.03495744]
[1739399209043,5.0536,197.87,197.85,0.03495744]
[1739399209838,13.87304227,197.88,197.73,1.6309]
[1739399210040,0.03368957,197.89,197.73,1.6309]
[1739399210041,13.87304227,197.83,197.73,1.6309]
[1739399210241,0.91813137,197.82,197.71,18.93044227]
[1739399210443,0.91813137,197.82,197.71,13.87304227]
[1739399210637,2.49705211,197.81,197.71,13.87304227]
[1739399210951,1.5787,197.81,197.68,13.87304227]
[1739399211146,0.03262466,197.78,197.74,0.03511464]
[1739399212449,0.03262466,197.78,197.74,5.09181464]
[1739399213049,0.03262466,197.78,197.75,5.0565]
[1739399214045,0.03262466,197.78,197.74,0.03511464]
[1739399214244,0.03262466,197.78,197.76,5.0562]
[1739399215049,0.91820738,197.86,197.77,13.87304227]
[1739399215346,13.87304227,197.89,197.77,13.87304227]
[1739399215544,0.91805532,197.88,197.81,5.055]
[1739399215946,13.87304227,197.89,197.81,5.055]
[1739399216143,0.91807508,197.88,197.83,0.03775265]
[1739399216446,0.03266663,197.86,197.83,0.03775265]
[1739399216646,13.87304227,197.96,197.83,0.03775265]
[1739399216847,0.91791614,197.95,197.83,13.91079492]
[1739399217048,0.91791614,197.95,197.83,13.87304227]
[1739399217752,0.91791614,197.95,197.86,5.0537]
[1739399218051,0.91791614,197.95,197.87,0.03829321]
[1739399218352,5.0513,197.96,197.87,0.03829321]
[1739399218558,0.91775469,197.95,197.87,0.03829321]
[1739399218749,0.91775469,197.95,197.86,13.87304227]
[1739399219150,0.91775469,197.95,197.89,0.03786972]
[1739399219549,5.0513,197.96,197.85,5.0539]
[1739399219751,0.91774389,197.95,197.9,0.03790795]
[1739399219951,0.91774389,197.97,197.9,0.03790795]
[1739399220151,0.91774383,197.98,197.9,0.03790795]
[1739399220352,0.91774383,197.97,197.9,0.03790795]
[1739399220547,5.0514,197.96,197.9,0.03790795]
[1739399220750,0.91774383,197.95,197.9,0.03790795]
[1739399221351,13.87304227,197.99,197.9,0.03790795]
[1739399221553,0.91774845,197.98,197.9,0.03790795]
[1739399221957,13.87304227,197.96,197.9,0.03790795]
[1739399222159,0.91774845,197.95,197.9,0.03790795]
[1739399222551,13.87304227,197.96,197.9,0.03790795]
[1739399222552,0.91779403,197.94,197.9,0.03790795]
[1739399222859,13.87304227,197.96,197.9,0.03790795]
[1739399223056,0.91780846,197.95,197.9,0.03790795]
[1739399223262,5.0523,197.92,197.9,0.03790795]
[1739399224361,0.91790327,197.91,197.9,0.03790795]
[1739399225958,5.0523,197.92,197.9,0.03790795]
[1739399227160,5.0525,197.91,197.9,0.03790795]
[1739399229956,13.87304227,197.96,197.9,0.03790795]
[1739399230163,0.91771766,197.95,197.9,0.03790795]
[1739399230363,13.87304227,197.96,197.9,0.03790795]
[1739399230568,0.91771749,197.95,197.9,0.03790795]
[1739399231162,5.0525,197.91,197.9,0.03790795]
[1739399235365,0.91797726,197.91,197.77,13.87304227]
[1739399235570,14.79101953,197.9,197.8,5.0553]
[1739399235770,0.91797726,197.89,197.8,5.0553]
[1739399236566,0.03269943,197.86,197.83,0.03622075]
[1739399242471,0.03269943,197.86,197.85,5.054]
[1739399247573,5.0522,197.93,197.83,0.03622075]
[1739399247876,5.0522,197.93,197.82,3.2325]
[1739399248773,0.02332723,197.89,197.86,0.03246482]
[1739399249176,0.02332723,197.89,197.88,5.0533]
[1739399252383,0.02332723,197.89,197.88,13.88231095]
[1739399253486,0.02332723,197.89,197.88,5.0533]
[1739399254487,0.02332723,197.89,197.86,8.86147577]
[1739399255483,0.02332723,197.89,197.88,5.0533]
[1739399260386,0.02332723,197.89,197.88,0.1069]
[1739399260696,0.02332723,197.89,197.86,0.03246482]
[1739399260989,8.82901095,197.87,197.86,0.03246482]
[1739399261387,13.88251095,197.87,197.86,0.03246482]
[1739399262304,8.82901095,197.87,197.77,13.88511095]
[1739399262497,5.055,197.82,197.77,13.88511095]
[1739399262698,8.82901095,197.85,197.77,8.82901095]
[1739399262999,5.0551,197.81,197.77,13.88491095]
[1739399263302,8.82901095,197.85,197.77,8.82901095]
[1739399263495,5.0934702,197.81,197.77,8.86205186]
[1739399263700,8.82901095,197.83,197.75,8.82901095]
[1739399263904,0.03697435,197.81,197.77,0.03401751]
[1739399264103,5.0554,197.8,197.77,0.03401751]
[1739399264302,0.03697435,197.81,197.77,0.03401751]
[1739399264803,5.0558,197.79,197.77,0.03401751]
[1739399265798,5.0558,197.78,197.77,0.03401751]
[1739399266201,8.82901095,197.79,197.69,15.68187708]
[1739399266503,8.82901095,197.75,197.69,15.68187708]
[1739399266703,8.82901095,197.75,197.69,6.85286613]
[1739399267003,5.0572,197.73,197.67,13.88751095]
[1739399267399,0.03750258,197.72,197.68,0.03832929]
[1739399268202,0.03750258,197.72,197.68,5.09672929]
[1739399268405,0.03750258,197.72,197.68,0.03832929]
[1739399269203,0.03750258,197.72,197.7,5.0578]
[1739399269502,0.03750258,197.72,197.68,0.03832929]
[1739399269704,0.03750258,197.72,197.71,5.0576]
[1739399270206,0.03750258,197.72,197.68,0.03832929]
[1739399270410,0.03750258,197.72,197.71,5.0576]
[1739399275408,2.58e-06,197.72,197.71,5.0576]
[1739399281407,2.58e-06,197.72,197.68,0.03832929]
[1739399282411,5.0579,197.7,197.68,0.03832929]
[1739399282807,2.58e-06,197.72,197.68,0.03832929]
[1739399283005,5.0577,197.71,197.68,0.03832929]
[1739399283314,2.58e-06,197.72,197.68,0.03832929]
[1739399283517,13.82171633,197.71,197.68,0.03832929]
[1739399284318,5.0579,197.7,197.68,0.03832929]
[1739399284515,13.82171633,197.71,197.68,0.03832929]
[1739399284818,2.58e-06,197.72,197.68,0.03832929]
[1739399285019,2.58e-06,197.72,197.69,5.058]
[1739399285511,2.58e-06,197.72,197.68,0.03832929]
[1739399286918,5.0581,197.69,197.68,0.03832929]
[1739399288421,13.82171633,197.71,197.68,0.03832929]
[1739399288622,5.0581,197.69,197.68,0.03832929]
[1739399289517,5.0579,197.7,197.68,0.03832929]
[1739399289717,8.85071576,197.69,197.68,0.03832929]
[1739399290221,13.90881576,197.69,197.68,0.03832929]
[1739399290720,13.90881576,197.69,197.59,8.85071576]
[1739399290721,5.059,197.66,197.61,5.0602]
[1739399290919,13.90971576,197.66,197.61,5.0602]
[1739399291122,13.90971576,197.66,197.62,5.0599]
[1739399291312,13.90971576,197.66,197.59,8.85071576]
[1739399291923,0.03675945,197.64,197.62,5.0599]
[1739399292522,0.03675945,197.64,197.63,5.0597]
[1739399298526,0.03675945,197.64,197.63,13.91041576]
[1739399301930,5.945e-05,197.64,197.63,13.91041576]
[1739399307433,8.85071576,197.74,197.63,8.85071576]
[1739399307631,8.85071576,197.76,197.72,5.0573]
[1739399307829,8.85071576,197.78,197.69,8.85071576]
[1739399308029,8.85071576,197.8,197.73,8.85071576]
[1739399308233,8.85071576,197.82,197.75,8.85071576]
[1739399308434,8.85071576,197.84,197.77,8.85071576]
[1739399308635,0.03530065,197.8,197.77,8.88332662]
[1739399309132,8.88601641,197.8,197.77,0.03261086]
[1739399309735,13.94131641,197.8,197.77,0.03261086]
[1739399311040,8.88601641,197.8,197.77,0.03261086]
[1739399311240,5.0558,197.78,197.77,0.03261086]
[1739399312446,5.0556,197.79,197.77,0.03261086]
[1739399312841,8.88601641,197.8,197.77,0.03261086]
[1739399313742,8.85071576,197.78,197.77,0.03261086]
[1739399313946,13.90651576,197.78,197.77,0.03261086]
[1739399321842,8.88601641,197.8,197.77,0.03261086]
[1739399323546,13.94131641,197.8,197.77,0.03261086]
[1739399323748,8.88601641,197.8,197.77,0.03261086]
[1739399324150,13.94141641,197.8,197.77,0.03261086]
[1739399326253,8.88601641,197.8,197.77,0.03261086]
[1739399326750,0.03530065,197.8,197.77,0.03261086]
[1739399328745,8.88601641,197.8,197.77,0.03261086]
[1739399330247,5.0556,197.79,197.77,0.03261086]
[1739399330652,8.88601641,197.8,197.77,0.03261086]
[1739399331150,13.94161641,197.8,197.77,0.03261086]
[1739399331350,8.88601641,197.8,197.77,0.03261086]
[1739399332349,5.0558,197.78,197.77,0.03261086]
[1739399332553,13.90651576,197.78,197.77,0.03261086]
[1739399332752,8.85071576,197.78,197.77,0.03261086]
[1739399334657,13.94161641,197.8,197.77,0.03261086]
[1739399334845,8.88601641,197.8,197.77,0.03261086]
[1739399335157,8.88601641,197.8,197.77,5.08851086]
[1739399335549,0.03530065,197.8,197.77,0.03261086]
[1739399336952,0.03530065,197.8,197.77,5.08861086]
[1739399340561,0.03530065,197.8,197.78,5.0558]
[1739399341167,0.03530065,197.8,197.79,5.0556]
[1739399345069,0.03530065,197.8,197.79,13.90631576]
[1739399346066,8.85071576,197.88,197.79,8.85071576]
[1739399346369,8.85071576,197.88,197.81,8.85071576]
[1739399346570,8.85071576,197.9,197.81,8.85071576]
[1739399346963,8.85071576,197.9,197.83,8.85071576]
[1739399347161,8.85071576,197.9,197.86,5.0537]
[1739399347671,8.85071576,197.9,197.86,0.03871513]
[1739399348871,8.85071576,197.9,197.87,5.0534]
[1739399350170,8.85071576,197.92,197.88,5.0531]
[1739399352172,13.90311576,197.92,197.88,5.0531]
[1739399354477,8.85071576,197.92,197.88,5.0531]
[1739399355176,8.85071576,197.94,197.9,5.0527]
[1739399355671,8.85071576,197.98,197.91,5.0524]
[1739399356176,8.85071576,197.96,197.91,5.0524]
[1739399356879,8.85071576,197.94,197.9,0.03404369]
[1739399357074,8.85071576,197.94,197.88,5.0531]
[1739399357267,5.0509,197.98,197.88,5.0531]
[1739399357268,8.85071576,197.96,197.9,0.03609993]
[1739399357467,8.85071576,197.94,197.9,0.03609993]
[1739399357672,8.85071576,197.92,197.84,13.90491576]
[1739399357976,8.85071576,197.92,197.9,0.03194892]
[1739399358174,8.85071576,197.92,197.84,8.85071576]
[1739399358371,8.85071576,197.92,197.89,0.03471102]
[1739399358571,8.85071576,197.96,197.89,0.03471102]
[1739399358772,8.85071576,197.96,197.88,8.85071576]
[1739399358972,8.85071576,197.96,197.91,0.03280895]
[1739399361476,8.85071576,197.98,197.91,0.03280895]
[1739399361679,8.85071576,197.98,197.92,8.85071576]
[1739399362373,100.1,198.1,197.92,8.85071576]
[1739399362374,102.92570961,198.16,197.97,8.85071576]
[1739399362573,56.25555001,198.13,198.08,5.048]
[1739399362771,56.25555001,198.13,198.08,13.89871576]
[1739399363176,56.25555001,198.13,198.09,0.03760026]
[1739399366675,56.25555001,198.36,198.09,0.03760026]
[1739399366879,9.81793137,198.35,198.09,0.03760026]
[1739399367082,5.0465,198.15,198.09,0.03760026]
[1739399367273,56.25555001,198.36,198.09,0.03760026]
[1739399369278,10.0844,198.32,198.09,0.03760026]
[1739399369878,5.0465,198.15,198.1,5.0475]
[1739399370082,13.76666565,198.21,198.07,13.76666565]
[1739399370279,5.44819695,198.2,198.11,0.03650417]
[1739399370485,13.76666565,198.18,198.11,0.03650417]
[1739399372481,0.91681822,198.17,198.11,0.03650417]
[1739399373181,13.76666565,198.18,198.11,0.03650417]
[1739399373386,0.91680822,198.16,198.11,0.03650417]
[1739399373576,5.0467,198.14,198.11,0.03650417]
[1739399373978,4.5314,198.2,198.11,0.03650417]
[1739399374183,5.0458,198.18,198.11,0.03650417]
[1739399374485,0.91680409,198.17,198.11,0.03650417]
[1739399374685,5.0469,198.14,198.11,0.03650417]
[1739399375484,5.047,198.13,198.11,0.03650417]
[1739399376188,5.046,198.17,198.11,0.03650417]
[1739399376389,0.91679698,198.16,198.11,0.03650417]
[1739399376692,4.5314,198.2,198.11,1.03650417]
[1739399376889,13.76666565,198.18,198.11,1.03650417]
[1739399377088,0.91677829,198.17,198.11,1.03650417]
[1739399377286,5.0471,198.13,198.11,1.03650417]
[1739399377686,13.76666565,198.18,198.11,1.03650417]
[1739399377885,0.91677299,198.17,198.11,1.03650417]
[1739399378085,0.91677299,198.16,198.11,1.03650417]
[1739399378285,5.0462,198.16,198.11,1.03650417]
[1739399381790,13.76666565,198.18,198.11,1.03650417]
[1739399381987,0.91669907,198.17,198.11,1.03650417]
[1739399382490,13.76666565,198.18,198.11,1.03650417]
[1739399382690,0.91669907,198.17,198.11,1.03650417]
[1739399382989,13.76666565,198.18,198.11,1.03650417]
[1739399383692,8.80842783,198.15,198.11,1.03650417]
[1739399384483,8.80842783,198.15,198.11,9.844932]
[1739399385894,8.80842783,198.15,198.11,1.03650417]
[1739399387496,8.80842783,198.17,198.11,9.844932]
[1739399387797,3.1303,198.2,198.15,8.80842783]
[1739399387991,6.6853,198.21,198.15,8.80842783]
[1739399388297,5.0452,198.2,198.16,0.03578797]
[1739399388697,10.44872783,198.21,198.16,0.03578797]
[1739399389994,5.0452,198.2,198.16,0.03578797]
[1739399390197,8.80842783,198.17,198.11,1.0]
[1739399390388,8.80842783,198.15,198.11,1.0]
[1739399391393,8.84393644,198.15,198.11,1.0362999]
[1739399391598,8.80842783,198.13,198.11,1.0362999]
[1739399391793,8.84393644,198.15,198.11,1.0362999]
[1739399392004,0.03550861,198.15,198.11,1.0362999]
[1739399392192,0.03550861,198.15,198.13,8.80842783]
[1739399392397,0.03550861,198.15,198.12,5.047]
[1739399392898,0.03550861,198.15,198.11,1.0362999]
[1739399393198,8.84393644,198.15,198.11,1.0362999]
[1739399393594,0.03550861,198.15,198.11,1.0362999]
[1739399394197,0.03550861,198.15,198.11,14.89192773]
[1739399394393,0.03550861,198.15,198.11,9.84472773]
[1739399394594,0.03550861,198.15,198.11,1.0362999]
[1739399394789,0.03550861,198.15,198.11,6.0834999]
[1739399394990,0.03550861,198.15,198.11,9.84472773]
[1739399395492,0.03550861,198.15,198.11,14.89202773]
[1739399396093,0.03550861,198.15,198.11,1.0362999]
[1739399396294,0.03550861,198.15,198.11,9.84472773]
[1739399396688,0.03550861,198.15,198.11,6.0834999]
[1739399397297,0.03550861,198.15,198.11,1.0362999]
[1739399398100,8.84393644,198.15,198.11,1.0362999]
[1739399398697,0.03550861,198.15,198.11,1.0362999]
[1739399399997,8.80842783,198.13,198.11,1.0362999]
[1739399401095,5.0472,198.12,198.05,27.70425384]
[1739399401304,8.80842783,198.08,198.06,6.92606346]
[1739399403004,0.03396111,198.09,198.06,15.73449129]
[1739399403204,8.80842783,198.2,198.12,8.80842783]
[1739399403602,13.754762,198.24,198.1,13.754762]
[1739399403796,0.9164795,198.23,198.1,13.754762]
[1739399404300,0.0361954,198.18,198.15,0.03835738]
[1739399404703,13.7909574,198.18,198.15,0.03835738]
[1739399406307,13.7909574,198.18,198.04,13.754762]
[1739399406502,1.4887,198.17,198.04,13.754762]
[1739399406698,13.754762,198.15,198.04,5.0491]
[1739399406899,13.754762,198.12,198.04,5.0491]
[1739399407400,0.03658285,198.1,198.06,0.03516629]
[1739399408806,0.03658285,198.1,198.06,5.08366629]
[1739399409308,0.03658285,198.1,198.06,0.03516629]
[1739399409509,0.03658285,198.1,198.07,5.0483]
[1739399409697,8.285e-05,198.1,198.06,0.03516629]
[1739399411013,8.285e-05,198.1,198.08,5.048]
[1739399415110,8.285e-05,198.1,198.06,0.03516629]
[1739399419011,8.285e-05,198.1,198.07,4.03]
[1739399421716,8.285e-05,198.1,198.07,9.0784]
[1739399422413,8.285e-05,198.1,198.07,13.1084]
[1739399423816,8.285e-05,198.1,198.07,8.06]
[1739399424314,5.04778285,198.1,198.07,8.06]
[1739399424711,8.285e-05,198.1,198.07,8.06]
[1739399425017,13.75484485,198.1,198.07,8.06]
[1739399425214,8.285e-05,198.1,198.07,8.06]
[1739399425417,8.285e-05,198.1,198.09,5.0479]
[1739399434126,8.285e-05,198.1,198.04,8.22]
[1739399434127,27.50960685,198.1,198.04,8.22]
[1739399434426,13.754762,198.05,197.98,98.27856013]
[1739399434627,13.754762,198.02,197.98,98.27856013]
[1739399434929,13.754762,198.0,197.97,155.09414196]
[1739399435423,27.54278076,198.0,197.98,4.04]
[1739399435624,22.07317459,197.99,197.97,120.11612116]
[1739399436529,22.07317459,197.99,197.97,0.03736865]
[1739399436725,22.07317459,197.99,197.97,0.72736865]
[1739399437825,0.03325676,198.0,197.97,0.72736865]
[1739399440930,22.07317459,198.11,197.98,1.5111]
[1739399441329,22.07317459,198.15,198.05,5.0489]
[1739399441529,22.07317459,198.08,197.97,0.69]
[1739399442233,0.03517198,198.04,198.01,0.03826504]
[1739399448031,5.08457198,198.04,198.01,0.03826504]
[1739399449434,5.0495,198.03,198.01,0.03826504]
[1739399451633,5.0505,197.99,197.98,5.87]
[1739399452035,5.0505,197.99,197.97,0.69]
[1739399453137,22.10870336,198.0,197.97,0.69]
[1739399453338,5.0507,197.98,197.97,0.69]
[1739399453540,0.03552877,198.0,197.97,0.69]
[1739399455743,5.08572877,198.0,197.97,0.69]
[1739399458841,5.0505,197.99,197.97,0.69]
[1739399459140,0.03552877,198.0,197.97,0.69]
[1739399459643,13.7904858,197.99,197.97,0.69]
[1739399462042,0.03552877,198.0,197.97,0.69]
[1739399463145,0.03552877,198.0,197.99,5.0505]
[1739399465146,0.03552877,198.0,197.96,0.03683911]
[1739399467044,0.03552877,198.0,197.98,5.0507]
[1739399467545,0.03552877,198.0,197.96,0.03683911]
[1739399467546,5.0507,197.98,197.96,0.03683911]
[1739399468046,13.7904858,197.99,197.83,13.7904858]
[1739399468253,13.7904858,197.99,197.86,4.5045]